fUSD/lending_fUSD_20250506
["ID","MTS","AMOUNT","RATE_DAILY","PERIOD"]
[360128409,1746559844331,-450.0,0.00019894,2]
[360128411,1746559844339,-291.83,0.00019894,2]
[360128413,1746559844349,-450.0,0.00019894,2]
[360128415,1746559844358,-450.0,0.00019894,2]
[360128417,1746559844368,-450.0,0.00019894,2]
[360128419,1746559844378,-450.0,0.00019894,2]
[360128421,1746559844387,-450.0,0.00019894,2]
[360128423,1746559844397,-450.0,0.00019894,2]
[360128425,1746559844406,-450.0,0.00019894,2]
[360128427,1746559844415,-450.0,0.00019894,2]
[360128429,1746559844424,-579.24,0.00019894,2]
[360128431,1746559844433,-450.0,0.00019894,2]
[360128433,1746559844441,-456.2,0.00019894,2]
[360128435,1746559844450,-1912.44,0.00019894,2]
[360128437,1746559844459,-393.26758948,0.00019894,2]
[360128439,1746559844468,-973.56,0.00019894,2]
[360128441,1746559844477,-450.0,0.00019894,2]
[360128443,1746559844487,-450.0,0.00019894,2]
[360128445,1746559844496,-450.0,0.00019894,2]
[360128447,1746559844506,-450.0,0.00019894,2]
[360128449,1746559844515,-450.0,0.00019894,2]
[360128451,1746559844524,-450.0,0.00019894,2]
[360128453,1746559844533,-450.0,0.00019894,2]
[360128455,1746559844543,-535.09,0.00019894,2]
[360128457,1746559844553,-450.0,0.00019894,2]
[360128459,1746559844563,-307.06590877,0.00019895,2]
[360128461,1746559844572,-450.0,0.00019895,2]
[360128463,1746559844581,-450.0,0.00019895,2]
[360128465,1746559844591,-450.0,0.00019895,2]
[360128467,1746559844600,-151.79269557,0.00019895,2]
[360128469,1746559844609,-450.0,0.00019895,2]
[360128471,1746559844619,-450.0,0.00019895,2]
[360128473,1746559844628,-450.0,0.00019895,2]
[360128475,1746559844637,-450.0,0.00019895,2]
[360128477,1746559844646,-450.0,0.00019895,2]
[360128479,1746559844655,-450.0,0.00019895,2]
[360128481,1746559844664,-450.0,0.00019895,2]
[360128483,1746559844674,-450.0,0.00019895,2]
[360128485,1746559844683,-450.0,0.00019895,2]
[360128487,1746559844693,-450.0,0.00019895,2]
[360128489,1746559844702,-450.0,0.00019895,2]
[360128491,1746559844712,-450.0,0.00019895,2]
[360128493,1746559844723,-450.0,0.00019895,2]
[360128495,1746559844732,-450.0,0.00019895,2]
[360128497,1746559844741,-450.0,0.00019895,2]
[360128499,1746559844750,-191.9,0.00019895,2]
[360128501,1746559844760,-450.0,0.00019895,2]
[360128503,1746559844770,-450.0,0.00019895,2]
[360128505,1746559844779,-450.0,0.00019895,2]
[360128507,1746559844788,-450.0,0.00019895,2]
[360128509,1746559844798,-450.0,0.00019895,2]
[360128511,1746559844806,-450.0,0.00019895,2]
[360128513,1746559844816,-450.0,0.00019895,2]
[360128515,1746559844825,-450.0,0.00019895,2]
[360128517,1746559844834,-450.0,0.00019895,2]
[360128519,1746559844843,-450.0,0.00019895,2]
[360128521,1746559844852,-450.0,0.00019895,2]
[360128523,1746559844861,-450.0,0.00019895,2]
[360128525,1746559844870,-266.29,0.00019895,2]
[360128527,1746559844880,-450.0,0.00019895,2]
[360128529,1746559844889,-450.0,0.00019895,2]
[360128531,1746559844898,-450.0,0.00019895,2]
[360128533,1746559844907,-418.80591143,0.00019895,2]
[360128535,1746559844917,-450.0,0.00019895,2]
[360128537,1746559844926,-450.0,0.00019895,2]
[360128539,1746559844935,-450.0,0.00019895,2]
[360128541,1746559844946,-450.0,0.00019895,2]
[360128543,1746559844955,-450.0,0.00019895,2]
[360128545,1746559844964,-450.0,0.00019895,2]
[360128547,1746559844974,-450.0,0.00019895,2]
[360128549,1746559844983,-450.0,0.00019895,2]
[360128551,1746559844991,-450.0,0.00019895,2]
[360128553,1746559845001,-450.0,0.00019895,2]
[360128555,1746559845010,-450.0,0.00019895,2]
[360128557,1746559845020,-307.06590877,0.00019896,2]
[360128559,1746559845029,-150.71776479,0.00019896,2]
[360128561,1746559845038,-450.0,0.00019896,2]
[360128563,1746559845048,-451.55029221,0.00019896,2]
[360128565,1746559845056,-450.0,0.00019896,2]
[360128567,1746559845065,-450.0,0.00019896,2]
[360128569,1746559845075,-450.0,0.00019896,2]
[360128571,1746559845084,-26415.55,0.00019896,2]
[360128573,1746559845093,-450.0,0.00019896,2]
[360128575,1746559845102,-1771.01,0.00019896,2]
[360128577,1746559845111,-7372.2,0.00019896,2]
[360128579,1746559845121,-528.26,0.00019896,2]
[360128581,1746559845132,-889.62,0.00019896,2]
[360128584,1746559845142,-4409.96,0.00019896,2]
[360128585,1746559845151,-450.0,0.00019896,2]
[360128587,1746559845161,-450.0,0.00019896,2]
[360128589,1746559845170,-450.0,0.00019896,2]
[360128591,1746559845180,-176.0520996,0.00019897,2]
[360128593,1746559845189,-307.06590877,0.00019897,2]
[360128595,1746559845198,-307.06590877,0.00019898,2]
[360128597,1746559845211,-349.572559,0.00019898,2]
[360128600,1746559845222,-349.572559,0.00019898,2]
[360128602,1746559845231,-286.412312,0.00019898,2]
[360128604,1746559845240,-286.412312,0.00019898,2]
[360128606,1746559845249,-397.602981,0.00019898,2]
[360128608,1746559845262,-397.602981,0.00019898,2]
[360128610,1746559845271,-151.0,0.00019898,2]
[360128612,1746559845280,-151.0,0.00019898,2]
[360128614,1746559845291,-151.0,0.00019898,2]
[360128616,1746559845300,-450.0,0.00019898,2]
[360128618,1746559845309,-196.19,0.00019898,2]
[360128620,1746559845318,-450.0,0.00019898,2]
[360128622,1746559845327,-450.0,0.00019898,2]
[360128624,1746559845336,-450.0,0.00019898,2]
[360128626,1746559845346,-450.0,0.00019898,2]
[360128628,1746559845355,-450.0,0.00019898,2]
[360128630,1746559845365,-450.0,0.00019898,2]
[360128632,1746559845375,-450.0,0.00019898,2]
[360128634,1746559845384,-450.0,0.00019898,2]
[360128636,1746559845393,-450.0,0.00019898,2]
[360128638,1746559845403,-450.0,0.00019898,2]
[360128640,1746559845412,-450.0,0.00019898,2]
[360128642,1746559845422,-450.0,0.00019898,2]
[360128644,1746559845431,-450.0,0.00019898,2]
[360128646,1746559845442,-450.0,0.00019898,2]
[360128648,1746559845451,-450.0,0.00019898,2]
[360128650,1746559845460,-450.0,0.00019898,2]
[360128652,1746559845469,-450.0,0.00019898,2]
[360128654,1746559845478,-450.0,0.00019898,2]
[360128656,1746559845487,-450.0,0.00019898,2]
[360128658,1746559845496,-450.0,0.00019898,2]
[360128660,1746559845505,-195.65792056,0.00019898,2]
[360128662,1746559845514,-450.0,0.00019898,2]
[360128664,1746559845523,-450.0,0.00019898,2]
[360128666,1746559845533,-450.0,0.00019898,2]
[360128668,1746559845541,-450.0,0.00019898,2]
[360128670,1746559845550,-450.0,0.00019898,2]
[360128672,1746559845559,-450.0,0.00019898,2]
[360128674,1746559845568,-539.18,0.00019898,2]
[360128676,1746559845578,-450.0,0.00019898,2]
[360128678,1746559845587,-450.0,0.00019898,2]
[360128680,1746559845596,-255.46,0.00019898,2]
[360128682,1746559845605,-450.0,0.00019898,2]
[360128684,1746559845614,-22070.84,0.00019898,2]
[360128686,1746559845624,-450.0,0.00019898,2]
[360128688,1746559845633,-805.88,0.00019898,2]
[360128690,1746559845642,-450.0,0.00019898,2]
[360128692,1746559845651,-450.0,0.00019898,2]
[360128694,1746559845661,-225.16,0.00019898,2]
[360128696,1746559845670,-450.0,0.00019898,2]
[360128698,1746559845679,-450.0,0.00019898,2]
[360128700,1746559845689,-450.0,0.00019898,2]
[360128702,1746559845698,-450.0,0.00019898,2]
[360128704,1746559845707,-478.77369317,0.00019898,2]
[360128706,1746559845717,-450.0,0.00019898,2]
[360128708,1746559845726,-579.79,0.00019898,2]
[360128709,1746559845735,-450.0,0.00019898,2]
[360128711,1746559845744,-450.0,0.00019898,2]
[360128713,1746559845754,-450.0,0.00019898,2]
[360128716,1746559845763,-450.0,0.00019898,2]
[360128718,1746559845772,-450.0,0.00019898,2]
[360128720,1746559845782,-450.0,0.00019898,2]
[360128722,1746559845791,-511.07,0.00019898,2]
[360128724,1746559845800,-1464.05,0.00019898,2]
[360128726,1746559845809,-450.0,0.00019898,2]
[360128728,1746559845818,-539.93,0.00019898,2]
[360128730,1746559845827,-917.66,0.00019898,2]
[360128731,1746559845836,-450.0,0.00019898,2]
[360128734,1746559845846,-500.0,0.00019898,2]
[360128735,1746559845857,-450.0,0.00019898,2]
[360128737,1746559845867,-450.0,0.00019898,2]
[360128739,1746559845876,-450.0,0.00019898,2]
[360128742,1746559845887,-450.0,0.00019898,2]
[360128744,1746559845897,-450.0,0.00019898,2]
[360128746,1746559845906,-450.0,0.00019898,2]
[360128748,1746559845915,-450.0,0.00019898,2]
[360128750,1746559845926,-450.0,0.00019898,2]
[360128752,1746559845936,-450.0,0.00019898,2]
[360128754,1746559845948,-450.0,0.00019898,2]
[360128756,1746559845957,-450.0,0.00019898,2]
[360128758,1746559845967,-591.58,0.00019898,2]
[360128760,1746559845977,-450.0,0.00019898,2]
[360128762,1746559845987,-450.0,0.00019898,2]
[360128782,1746559846159,-5474.51,0.00019898,2]
[360128784,1746559846169,-593.64,0.00019898,2]
[360128786,1746559846181,-450.0,0.00019898,2]
[360128789,1746559846190,-450.0,0.00019898,2]
[360128791,1746559846199,-450.0,0.00019898,2]
[360128793,1746559846209,-450.0,0.00019898,2]
[360128795,1746559846218,-450.0,0.00019898,2]
[360128797,1746559846228,-450.0,0.00019898,2]
[360128800,1746559846238,-450.0,0.00019898,2]
[360128802,1746559846248,-450.0,0.00019898,2]
[360128804,1746559846257,-450.0,0.00019898,2]
[360128806,1746559846267,-450.0,0.00019898,2]
[360128808,1746559846277,-450.0,0.00019898,2]
[360128810,1746559846286,-314.32,0.00019898,2]
[360128812,1746559846295,-450.0,0.00019898,2]
[360128814,1746559846305,-450.0,0.00019898,2]
[360128816,1746559846314,-450.0,0.00019898,2]
[360128818,1746559846324,-579.24,0.00019898,2]
[360128820,1746559846333,-572.03,0.00019898,2]
[360128822,1746559846343,-456.2,0.00019898,2]
[360128824,1746559846352,-1912.44,0.00019898,2]
[360128825,1746559846361,-973.56,0.00019898,2]
[360128827,1746559846371,-450.0,0.00019898,2]
[360128828,1746559846381,-450.0,0.00019898,2]
[360128830,1746559846390,-450.0,0.00019898,2]
[360128832,1746559846400,-250.53,0.00019898,2]
[360128834,1746559846409,-634.33,0.00019898,2]
[360128836,1746559846420,-450.0,0.00019898,2]
[360128838,1746559846429,-450.0,0.00019898,2]
[360128840,1746559846439,-283.13051921,0.00019898,2]
[360128842,1746559846448,-307.06590877,0.00019898,2]
[360128844,1746559846458,-151.0,0.00019899,2]
[360128846,1746559846468,-768.369716,0.00019899,2]
[360128848,1746559846477,-768.369716,0.00019899,2]
[360128850,1746559846487,-84.96575614,0.00019899,2]
[360128856,1746559846733,-973.62,0.0001987,2]
[360128857,1746559846743,-516.14,0.00019896,2]
[360128858,1746559846752,-66.03424386,0.00019899,2]
[360128859,1746559846761,-151.0,0.00019899,2]
[360128860,1746559846771,-241.44580965,0.00019899,2]
[360128861,1746559846782,-4.89007835,0.00019899,2]
[360128862,1746559846791,-151.0,0.00019899,2]
[360128863,1746559846800,-450.0,0.00019899,2]
[360128864,1746559846809,-450.0,0.00019899,2]
[360128865,1746559846819,-60.53824833,0.00019899,2]
[360128866,1746559846830,-90.46175167,0.00019899,2]
[360128867,1746559846839,-331.84641978,0.00019899,2]
[360128868,1746559846851,-118.15358022,0.00019899,2]
[360128869,1746559846861,-151.0,0.00019899,2]
[360128870,1746559846870,-450.0,0.00019899,2]
[360128871,1746559846880,-233.06641978,0.00019899,2]
[360128875,1746559847034,-429.0,0.00019888,2]
[360128876,1746559847047,-21.0,0.00019888,2]
[360128877,1746559847057,-973.62,0.00019894,2]
[360128878,1746559847066,-973.62,0.00019898,2]
[360128879,1746559847075,-450.0,0.00019898,2]
[360128880,1746559847086,-216.93358022,0.00019899,2]
[360128881,1746559847096,-450.0,0.00019899,2]
[360128882,1746559847105,-194.836868,0.00019899,2]
[360128883,1746559847115,-194.836868,0.00019899,2]
[360128884,1746559847124,-450.0,0.00019899,2]
[360128885,1746559847136,-450.0,0.00019899,2]
[360128886,1746559847146,-450.0,0.00019899,2]
[360128887,1746559847155,-450.0,0.00019899,2]
[360128888,1746559847165,-450.0,0.00019899,2]
[360128889,1746559847174,-450.0,0.00019899,2]
[360128890,1746559847184,-544.56,0.00019899,2]
[360128891,1746559847193,-450.0,0.00019899,2]
[360128892,1746559847203,-450.0,0.00019899,2]
[360128893,1746559847213,-450.0,0.00019899,2]
[360128894,1746559847223,-450.0,0.00019899,2]
[360128895,1746559847234,-450.0,0.00019899,2]
[360128896,1746559847244,-450.0,0.00019899,2]
[360128897,1746559847254,-450.0,0.00019899,2]
[360128898,1746559847263,-450.0,0.00019899,2]
[360128899,1746559847273,-450.0,0.00019899,2]
[360128900,1746559847282,-450.0,0.00019899,2]
[360128901,1746559847291,-450.0,0.00019899,2]
[360128902,1746559847301,-539.18,0.00019899,2]
[360128903,1746559847310,-450.0,0.00019899,2]
[360128904,1746559847319,-232.36331689,0.00019899,2]
[360128905,1746559847328,-450.0,0.00019899,2]
[360128906,1746559847338,-450.0,0.00019899,2]
[360128907,1746559847347,-5727.83912014,0.00019899,2]
[360128908,1746559847481,-16343.00087986,0.00019899,2]
[360128909,1746559847490,-450.0,0.00019899,2]
[360128910,1746559847500,-805.88,0.00019899,2]
[360128911,1746559847509,-450.0,0.00019899,2]
[360128912,1746559847519,-3358.22939324,0.00019899,2]
[360128913,1746559847531,-5348.0,0.00019899,2]
[360128914,1746559847542,-1052.07733032,0.00019899,2]
[360128915,1746559851066,198.0,0.000194,2]
[360128916,1746560073704,223.67,0.00030137,120]
[360128917,1746560178923,152.0,0.0003,30]
[360128919,1746560497472,1079.08,0.00016903,2]
[360128920,1746560497686,1079.08,0.00019167,2]
[360128921,1746560547200,1000.0,0.00018826,2]
[360128922,1746560676344,274.15053198,0.00019395,2]
[360128923,1746560856638,164.16,0.00019363,2]
[360128924,1746560902858,250.0,0.00017,2]
[360128925,1746560903922,300.0,0.00019,2]
[360128931,1746560911796,1000.0,0.0003,33]
[360128938,1746561031689,-198.0,0.000196,2]
[360128939,1746561031698,-102.0,0.00019614,2]
[360128978,1746561037532,-148.0,0.00019614,2]
[360128979,1746561037542,-200.0,0.00019628,2]
[360128980,1746561037551,-200.0,0.00019655,2]
[360128981,1746561037562,-150.0,0.0001974,2]
[360128982,1746561037573,-207.4,0.00019756,2]
[360128983,1746561037583,-3000.0,0.0001976,2]
[360128984,1746561037597,-1200.0,0.00019766,2]
[360128985,1746561037607,-300.0,0.00019766,2]
[360128986,1746561037618,-300.0,0.00019767,2]
[360128987,1746561037628,-300.0,0.00019767,2]
[360128988,1746561037638,-3572.66072568,0.00019768,2]
[360128989,1746561037801,-360.06602874,0.00019768,2]
[360128990,1746561037853,-8567.27324558,0.00019768,2]
[360128991,1746561037863,-321.85112711,0.00019769,2]
[360128992,1746561037872,-4512.56346395,0.00019777,2]
[360129098,1746561039630,-7987.43653605,0.00019777,2]
[360129100,1746561039639,-150.0,0.00019779,2]
[360129102,1746561039648,-321.85112706,0.00019784,2]
[360129103,1746561039658,-12500.0,0.00019786,2]
[360129105,1746561039668,-150.0,0.00019792,2]
[360129107,1746561039677,-172.36899397,0.00019795,2]
[360129109,1746561039687,-244.53424165,0.00019795,2]
[360129111,1746561039696,-188.82724087,0.00019798,2]
[360129113,1746561039705,-321.85112706,0.00019798,2]
[360129115,1746561039714,-175.4662336,0.000198,2]
[360129117,1746561039724,-176.0520996,0.000198,2]
[360129119,1746561039733,-1000.0,0.000198,2]
[360129121,1746561039743,-1000.0,0.000198,2]
[360129123,1746561039752,-1000.0,0.000198,2]
[360129125,1746561039761,-1000.0,0.000198,2]
[360129127,1746561039771,-1000.0,0.000198,2]
[360129128,1746561039780,-1000.0,0.000198,2]
[360129130,1746561039791,-198.0,0.000198,2]
[360129132,1746561039800,-172.36899397,0.00019807,2]
[360129134,1746561039810,-377.0,0.00019808,2]
[360129136,1746561039820,-244.53424158,0.0001981,2]
[360129138,1746561039830,-321.85112706,0.00019813,2]
[360129140,1746561039839,-5975.76557108,0.00019814,2]
[360129142,1746561039848,-175.46623358,0.00019817,2]
[360129144,1746561039859,-172.36899397,0.00019818,2]
[360129146,1746561039868,-244.53424158,0.00019825,2]
[360129148,1746561039879,-321.85112706,0.00019827,2]
[360129150,1746561039888,-172.36899397,0.0001983,2]
[360129152,1746561039898,-2000.0,0.00019832,2]
[360129154,1746561039907,-200.0,0.00019832,2]
[360129156,1746561039917,-175.46623358,0.00019833,2]
[360129158,1746561039926,-244.53424158,0.0001984,2]
[360129159,1746561039935,-172.36899397,0.00019842,2]
[360129161,1746561039945,-321.85112706,0.00019842,2]
[360129163,1746561039955,-175.46623358,0.0001985,2]
[360129165,1746561039964,-172.36899397,0.00019853,2]
[360129167,1746561039974,-244.53424158,0.00019855,2]
[360129169,1746561039983,-321.85112706,0.00019856,2]
[360129171,1746561039993,-252.43,0.00019859,2]
[360129173,1746561040002,-150.0,0.00019864,2]
[360129175,1746561040012,-172.36899397,0.00019865,2]
[360129177,1746561040021,-15162.35993202,0.00019865,2]
[360129179,1746561040031,-500.0,0.00019865,2]
[360129180,1746561040040,-500.0,0.00019865,2]
[360129182,1746561040050,-500.0,0.00019865,2]
[360129184,1746561040059,-500.0,0.00019865,2]
[360129186,1746561040069,-500.0,0.00019865,2]
[360129188,1746561040079,-500.0,0.00019865,2]
[360129190,1746561040089,-500.0,0.00019865,2]
[360129192,1746561040099,-500.0,0.00019865,2]
[360129194,1746561040108,-500.0,0.00019865,2]
[360129196,1746561040118,-315.92137473,0.00019865,2]
[360129198,1746561040128,-500.0,0.00019865,2]
[360129200,1746561040137,-500.0,0.00019865,2]
[360129202,1746561040149,-500.0,0.00019865,2]
[360129204,1746561040158,-500.0,0.00019865,2]
[360129206,1746561040168,-500.0,0.00019865,2]
[360129208,1746561040177,-500.0,0.00019865,2]
[360129210,1746561040186,-500.0,0.00019865,2]
[360129211,1746561040196,-500.0,0.00019865,2]
[360129213,1746561040206,-500.0,0.00019865,2]
[360129215,1746561040216,-500.0,0.00019865,2]
[360129217,1746561040226,-500.0,0.00019865,2]
[360129219,1746561040236,-500.0,0.00019865,2]
[360129221,1746561040245,-500.0,0.00019865,2]
[360129223,1746561040255,-500.0,0.00019865,2]
[360129225,1746561040264,-500.0,0.00019865,2]
[360129227,1746561040273,-500.0,0.00019865,2]
[360129229,1746561040283,-500.0,0.00019865,2]
[360129231,1746561040292,-500.0,0.00019865,2]
[360129233,1746561040302,-500.0,0.00019865,2]
[360129235,1746561040311,-500.0,0.00019865,2]
[360129236,1746561040320,-500.0,0.00019865,2]
[360129238,1746561040330,-500.0,0.00019865,2]
[360129240,1746561040339,-500.0,0.00019865,2]
[360129242,1746561040349,-500.0,0.00019865,2]
[360129244,1746561040358,-175.46623358,0.00019867,2]
[360129246,1746561040368,-450.0,0.00019868,2]
[360129248,1746561040378,-406.12143745,0.00019868,2]
[360129250,1746561040387,-450.0,0.00019868,2]
[360129252,1746561040396,-450.0,0.00019868,2]
[360129254,1746561040406,-450.0,0.00019868,2]
[360129256,1746561040415,-589.23253751,0.00019868,2]
[360129258,1746561040425,-450.0,0.00019868,2]
[360129260,1746561040434,-450.0,0.00019868,2]
[360129262,1746561040443,-450.0,0.00019868,2]
[360129264,1746561040452,-250.0,0.00019868,2]
[360129266,1746561040462,-450.0,0.00019868,2]
[360129268,1746561040471,-851.92,0.00019868,2]
[360129270,1746561040481,-450.0,0.00019868,2]
[360129272,1746561040491,-15871.77,0.00019868,2]
[360129274,1746561040500,-450.0,0.00019868,2]
[360129276,1746561040510,-450.0,0.00019868,2]
[360129278,1746561040522,-1623.42,0.00019868,2]
[360129280,1746561040531,-450.0,0.00019868,2]
[360129282,1746561040540,-157.8,0.00019868,2]
[360129283,1746561040549,-450.0,0.00019868,2]
[360129285,1746561040559,-590.17,0.00019868,2]
[360129287,1746561040568,-450.0,0.00019868,2]
[360129289,1746561040577,-6757.85,0.00019868,2]
[360129291,1746561040587,-450.0,0.00019868,2]
[360129293,1746561040596,-484.24,0.00019868,2]
[360129295,1746561040605,-157.98,0.00019868,2]
[360129297,1746561040615,-815.48,0.00019868,2]
[360129299,1746561040624,-450.0,0.00019868,2]
[360129301,1746561040634,-4042.47,0.00019868,2]
[360129303,1746561040644,-450.0,0.00019868,2]
[360129305,1746561040654,-450.0,0.00019868,2]
[360129307,1746561040663,-450.0,0.00019868,2]
[360129309,1746561040672,-280.90003842,0.00019868,2]
[360129311,1746561040682,-450.0,0.00019868,2]
[360129313,1746561040692,-511.07,0.00019868,2]
[360129315,1746561040701,-255.0,0.00019868,2]
[360129317,1746561040711,-450.0,0.00019868,2]
[360129319,1746561040720,-500.0,0.00019868,2]
[360129321,1746561040729,-450.0,0.00019868,2]
[360129323,1746561040739,-450.0,0.00019868,2]
[360129325,1746561040749,-450.0,0.00019868,2]
[360129327,1746561040758,-450.0,0.00019868,2]
[360129329,1746561040767,-542.28,0.00019868,2]
[360129331,1746561040776,-450.0,0.00019868,2]
[360129333,1746561040786,-450.0,0.00019868,2]
[360129335,1746561040795,-450.0,0.00019868,2]
[360129337,1746561040804,-450.0,0.00019868,2]
[360129338,1746561040813,-450.0,0.00019868,2]
[360129340,1746561040822,-450.0,0.00019868,2]
[360129342,1746561040831,-211.18328943,0.00019868,2]
[360129344,1746561040841,-450.0,0.00019868,2]
[360129346,1746561040850,-450.0,0.00019868,2]
[360129348,1746561040859,-450.0,0.00019868,2]
[360129350,1746561040868,-450.0,0.00019868,2]
[360129352,1746561040878,-450.0,0.00019868,2]
[360129354,1746561040887,-450.0,0.00019868,2]
[360129356,1746561040897,-450.0,0.00019868,2]
[360129358,1746561040906,-450.0,0.00019868,2]
[360129360,1746561040915,-357.05111007,0.00019868,2]
[360129362,1746561040924,-450.0,0.00019868,2]
[360129364,1746561040933,-450.0,0.00019868,2]
[360129366,1746561040942,-450.0,0.00019868,2]
[360129368,1746561040952,-450.0,0.00019868,2]
[360129370,1746561040961,-450.0,0.00019868,2]
[360129372,1746561040971,-530.97,0.00019868,2]
[360129374,1746561040980,-450.0,0.00019868,2]
[360129376,1746561040989,-450.0,0.00019868,2]
[360129378,1746561040998,-450.0,0.00019868,2]
[360129380,1746561041007,-586.61,0.00019868,2]
[360129382,1746561041016,-450.0,0.00019868,2]
[360129384,1746561041025,-450.0,0.00019868,2]
[360129386,1746561041035,-450.0,0.00019868,2]
[360129388,1746561041044,-450.0,0.00019868,2]
[360129390,1746561041054,-450.0,0.00019868,2]
[360129392,1746561041063,-450.0,0.00019868,2]
[360129394,1746561041073,-450.0,0.00019868,2]
[360129396,1746561041082,-450.0,0.00019868,2]
[360129398,1746561041092,-450.0,0.00019868,2]
[360129399,1746561041101,-450.0,0.00019868,2]
[360129401,1746561041110,-450.0,0.00019868,2]
[360129403,1746561041120,-450.0,0.00019868,2]
[360129405,1746561041130,-450.0,0.00019868,2]
[360129408,1746561041141,-450.0,0.00019868,2]
[360129409,1746561041151,-450.0,0.00019869,2]
[360129411,1746561041160,-450.0,0.00019869,2]
[360129413,1746561041170,-450.0,0.00019869,2]
[360129415,1746561041180,-450.0,0.00019869,2]
[360129417,1746561041190,-450.0,0.00019869,2]
[360129419,1746561041199,-450.0,0.00019869,2]
[360129421,1746561041208,-470.0,0.00019869,2]
[360129423,1746561041218,-450.0,0.00019869,2]
[360129425,1746561041228,-450.0,0.00019869,2]
[360129427,1746561041237,-450.0,0.00019869,2]
[360129429,1746561041247,-450.0,0.00019869,2]
[360129431,1746561041257,-450.0,0.00019869,2]
[360129433,1746561041266,-450.0,0.00019869,2]
[360129435,1746561041276,-450.0,0.00019869,2]
[360129437,1746561041286,-450.0,0.00019869,2]
[360129439,1746561041295,-450.0,0.00019869,2]
[360129441,1746561041304,-283.13051921,0.00019869,2]
[360129443,1746561041313,-450.0,0.00019869,2]
[360129445,1746561041322,-450.0,0.00019869,2]
[360129447,1746561041332,-450.0,0.00019869,2]
[360129449,1746561041341,-450.0,0.00019869,2]
[360129451,1746561041350,-450.0,0.00019869,2]
[360129452,1746561041360,-291.0,0.00019869,2]
[360129454,1746561041369,-450.0,0.00019869,2]
[360129456,1746561041378,-450.0,0.00019869,2]
[360129458,1746561041388,-267.56,0.00019869,2]
[360129460,1746561041397,-450.0,0.00019869,2]
[360129462,1746561041407,-535.42,0.00019869,2]
[360129464,1746561041417,-450.0,0.00019869,2]
[360129466,1746561041426,-450.0,0.00019869,2]
[360129468,1746561041435,-450.0,0.00019869,2]
[360129470,1746561041444,-450.0,0.00019869,2]
[360129491,1746561041635,-450.0,0.00019869,2]
[360129494,1746561041646,-450.0,0.00019869,2]
[360129496,1746561041656,-593.53,0.00019869,2]
[360129498,1746561041665,-450.0,0.00019869,2]
[360129500,1746561041674,-450.0,0.00019869,2]
[360129501,1746561041683,-450.0,0.00019869,2]
[360129503,1746561041693,-512.92,0.00019869,2]
[360129505,1746561041702,-450.0,0.00019869,2]
[360129506,1746561041712,-552.24,0.00019869,2]
[360129507,1746561041722,-450.0,0.00019869,2]
[360129508,1746561041731,-411.5546904,0.00019869,2]
[360129509,1746561041740,-450.0,0.00019869,2]